bitfinex-derivatives/quotes_BTCF0:USTF0_20250803
["timestamp","ask_amount","ask_price","bid_price","bid_amount"]
[1754252069875,0.5741659,114290.0,114280.0,1.17118069]
[1754252070062,0.5357959,114290.0,114280.0,1.17118069]
[1754252070371,0.1749959,114290.0,114280.0,1.17118069]
[1754252070673,0.1901659,114290.0,114280.0,1.17118069]
[1754252071571,0.1901659,114290.0,114280.0,0.90554069]
[1754252071772,0.1901659,114290.0,114280.0,1.17118069]
[1754252071972,0.79817539,114290.0,114280.0,1.17118069]
[1754252081184,0.79817539,114290.0,114280.0,0.5631712]
[1754252081379,0.79817539,114290.0,114280.0,1.17118069]
[1754252082081,0.1901659,114290.0,114280.0,1.53198069]
[1754252085986,0.1901659,114290.0,114280.0,0.9239712]
[1754252086291,0.79817539,114290.0,114280.0,1.17118069]
[1754252086478,0.1901659,114290.0,114280.0,1.17118069]
[1754252086680,0.79817539,114290.0,114280.0,1.17118069]
[1754252089490,0.1901659,114290.0,114280.0,1.17118069]
[1754252096791,0.1901659,114290.0,114280.0,1.53198069]
[1754252096993,0.88642369,114300.0,114290.0,0.300096]
[1754252097193,0.1909206,114300.0,114290.0,0.90810549]
[1754252097492,0.1749906,114300.0,114290.0,0.90810549]
[1754252097688,1.27502069,114310.0,114300.0,0.1749808]
[1754252097892,0.6391966,114310.0,114300.0,1.17365029]
[1754252098494,1.24720609,114310.0,114300.0,1.17365029]
[1754252098891,0.6391966,114310.0,114300.0,1.17365029]
[1754252099193,0.6411966,114310.0,114300.0,1.17365029]
[1754252099397,0.6441966,114310.0,114300.0,1.17365029]
[1754252101495,0.5407799,114310.0,114300.0,1.17365029]
[1754252102290,0.5567099,114310.0,114300.0,1.17365029]
[1754252102487,0.005,114310.0,114300.0,1.53445029]
[1754252102697,0.1799651,114310.0,114300.0,1.53445029]
[1754252103700,0.1799651,114310.0,114300.0,0.9264408]
[1754252103900,0.1799651,114310.0,114300.0,1.53445029]
[1754252105396,0.1799651,114310.0,114300.0,1.17365029]
[1754252105696,0.80390459,114310.0,114300.0,1.53445029]
[1754252107802,0.80390459,114310.0,114300.0,0.5656408]
[1754252108003,0.80390459,114310.0,114300.0,1.17365029]
[1754252108503,0.80390459,114310.0,114300.0,0.3000808]
[1754252108804,1.18790459,114310.0,114300.0,0.1251]
[1754252109205,1.18790459,114310.0,114300.0,0.07617]
[1754252109504,1.18790459,114310.0,114300.0,0.37537]
[1754252110305,1.18790459,114310.0,114300.0,0.10985]
[1754252110903,0.1911104,114300.0,114290.0,0.2851511]
[1754252111093,1.79112938,114300.0,114290.0,0.3362611]
[1754252111294,1.79112938,114300.0,114290.0,0.0288211]
[1754252112711,1.79412938,114300.0,114290.0,0.0690611]
[1754252113510,1.79412938,114300.0,114290.0,0.1250311]
[1754252114308,1.79412938,114300.0,114290.0,0.10708]
[1754252114704,1.79412938,114300.0,114290.0,0.07214]
[1754252115398,1.79412938,114300.0,114290.0,0.10708]
[1754252119812,0.5781104,114300.0,114290.0,0.10708]
[1754252120013,1.79412938,114300.0,114290.0,0.10708]
[1754252120215,1.79412938,114300.0,114290.0,0.07214]
[1754252121417,1.79412938,114300.0,114290.0,0.10708]
[1754252128922,1.43332938,114300.0,114290.0,0.10708]
[1754252129123,2.15492938,114300.0,114290.0,0.10708]
[1754252133122,0.9389104,114300.0,114290.0,0.10708]
[1754252133319,1.54691989,114300.0,114290.0,0.10708]
[1754252133629,0.9389104,114300.0,114290.0,0.10708]
[1754252133928,2.15492938,114300.0,114290.0,0.10708]
[1754252135124,0.9389104,114300.0,114290.0,0.10708]
[1754252135725,2.15492938,114300.0,114290.0,0.12229]
[1754252135920,2.15492938,114300.0,114290.0,0.2972857]
[1754252136128,2.15492938,114300.0,114290.0,0.07214]
[1754252136934,0.1911257,114290.0,114280.0,0.5629311]
[1754252137126,1.18313519,114290.0,114280.0,0.5629311]
[1754252137328,0.5751257,114290.0,114280.0,0.5629311]
[1754252137631,1.18313519,114290.0,114280.0,0.5629311]
[1754252138028,1.18313519,114290.0,114280.0,0.01087]
[1754252138232,0.214341,114280.0,114270.0,1.7696686]
[1754252138428,0.82235049,114280.0,114270.0,1.7696686]
[1754252138631,0.214341,114280.0,114270.0,1.7696686]
[1754252138828,0.214341,114280.0,114270.0,2.37767809]
[1754252138829,0.82235049,114280.0,114270.0,2.37767809]
[1754252139230,0.82235049,114280.0,114270.0,1.7259148]
[1754252139431,0.82235049,114280.0,114270.0,1.7269148]
[1754252139636,0.82235049,114280.0,114270.0,1.5519]
[1754252140534,0.82235049,114280.0,114270.0,1.5529]
[1754252140836,0.82235049,114280.0,114270.0,1.2873]
[1754252141036,0.82235049,114280.0,114270.0,1.7279664]
[1754252141240,0.82235049,114280.0,114270.0,1.55294]
[1754252141930,0.82235049,114280.0,114270.0,1.28659]
[1754252142131,1.79115998,114280.0,114270.0,1.4778]
[1754252142334,1.18315049,114280.0,114270.0,1.4778]
[1754252142833,1.18315049,114280.0,114270.0,1.51728]
[1754252143940,1.18315049,114280.0,114270.0,1.55051]
[1754252144640,1.18315049,114280.0,114270.0,1.54951]
[1754252144836,1.18715049,114280.0,114270.0,1.54951]
[1754252145437,1.01656449,114280.0,114250.0,0.7511926]
[1754252145741,1.18223099,114260.0,114250.0,0.2078326]
[1754252147040,1.18223099,114260.0,114250.0,0.19658588]
[1754252152944,0.175103,114220.0,114210.0,0.5359081]
[1754252153142,0.79829249,114220.0,114210.0,0.63666654]
[1754252153344,0.62318949,114220.0,114210.0,0.63666654]
[1754252154348,0.62318949,114220.0,114210.0,0.65238933]
[1754252154646,0.62318949,114220.0,114210.0,0.65558933]
[1754252155452,0.62318949,114220.0,114210.0,0.65258933]
[1754252155743,0.79829249,114220.0,114210.0,0.65358933]
[1754252156048,0.79829249,114220.0,114210.0,0.65158933]
[1754252156651,0.73149522,114220.0,114210.0,0.65158933]
[1754252157342,0.73149522,114220.0,114210.0,0.65154933]
[1754252160144,0.190283,114220.0,114210.0,0.65154933]
[1754252160351,0.55639222,114220.0,114210.0,0.65154933]
[1754252160552,0.56441222,114230.0,114220.0,0.1751031]
[1754252160858,0.01518,114240.0,114230.0,0.3867487]
[1754252161144,0.1902524,114240.0,114230.0,0.3867487]
[1754252161350,1.16461212,114250.0,114240.0,0.12412]
[1754252161749,1.18781212,114250.0,114240.0,0.12412]
[1754252163754,1.18981212,114250.0,114240.0,0.12412]
[1754252164356,1.19181212,114250.0,114240.0,0.12412]
[1754252165063,1.19181212,114250.0,114240.0,0.2991923]
[1754252165255,0.555047,114250.0,114240.0,0.2991923]
[1754252165554,0.01918,114250.0,114240.0,0.5653123]
[1754252165754,0.1942369,114250.0,114240.0,0.5653123]
[1754252166158,0.004,114250.0,114240.0,0.5653123]
[1754252166343,0.004,114250.0,114240.0,0.9261123]
[1754252167050,0.1790571,114250.0,114240.0,0.9261123]
[1754252180257,0.004,114250.0,114240.0,0.9261123]
[1754252180964,0.004,114250.0,114240.0,1.46732452]
[1754252181462,0.004,114250.0,114240.0,1.73452452]
[1754252181663,0.2349375,114270.0,114260.0,0.2236616]
[1754252181871,0.2187975,114270.0,114260.0,0.2984716]
[1754252182167,0.1750409,114270.0,114260.0,0.2984716]
[1754252182568,0.1911809,114270.0,114260.0,0.2984716]
[1754252183259,0.1951809,114270.0,114260.0,0.2984716]
[1754252183456,0.1991809,114270.0,114260.0,0.2984716]
[1754252185470,0.74039312,114270.0,114260.0,0.2984716]
[1754252185671,0.1991809,114270.0,114260.0,0.2984716]
[1754252186868,0.74039312,114270.0,114260.0,0.2984716]
[1754252187071,0.1991809,114270.0,114260.0,0.2984716]
[1754252191276,0.1951809,114270.0,114260.0,0.5649916]
[1754252191574,0.1961809,114270.0,114260.0,0.5649916]
[1754252192170,0.1951809,114270.0,114260.0,0.5649916]
[1754252192475,0.1961809,114270.0,114260.0,0.5649916]
[1754252193374,0.1931809,114270.0,114260.0,0.5649916]
[1754252193574,0.73439312,114270.0,114260.0,0.5649916]
[1754252193776,0.75759312,114270.0,114260.0,0.5649916]
[1754252194074,1.11839312,114270.0,114260.0,0.2984718]
[1754252194280,1.11839312,114270.0,114260.0,0.5649918]
[1754252195266,1.11839312,114270.0,114260.0,0.12343]
[1754252195468,1.11839312,114270.0,114260.0,0.37348]
[1754252195676,1.11839312,114270.0,114260.0,0.38991]
[1754252195873,0.75759312,114270.0,114260.0,0.38991]
[1754252196374,1.11839312,114270.0,114260.0,0.5649515]
[1754252196768,0.75759312,114270.0,114260.0,0.38991]
[1754252196973,1.11839312,114270.0,114260.0,0.38991]
[1754252197678,0.5771809,114270.0,114260.0,0.38991]
[1754252197982,1.11839312,114270.0,114260.0,0.38991]
[1754252198171,1.11839312,114270.0,114260.0,0.5649515]
[1754252198475,0.75759312,114270.0,114260.0,0.5649515]
[1754252198666,1.11839312,114270.0,114260.0,0.5649515]
[1754252199977,1.11839312,114270.0,114260.0,0.12343]
[1754252200177,1.11839312,114270.0,114260.0,0.39011]
[1754252208888,1.11839312,114270.0,114260.0,0.12343]
[1754252209187,1.11839312,114270.0,114260.0,0.38991]
[1754252211787,1.11839312,114270.0,114260.0,0.35638]
[1754252211993,1.11839312,114270.0,114260.0,0.39036]
[1754252212493,1.11839312,114270.0,114260.0,0.5654016]
[1754252212690,1.79394808,114270.0,114260.0,0.5654016]
[1754252213001,0.82476449,114270.0,114260.0,0.5654016]
[1754252214300,0.2163809,114270.0,114260.0,0.5654016]
[1754252214500,0.82476449,114270.0,114260.0,0.5654016]
[1754252214695,0.75709222,114270.0,114260.0,0.5654016]
[1754252216802,0.2163809,114270.0,114260.0,0.5654016]
[1754252221503,0.5771809,114270.0,114260.0,0.39036]
[1754252221707,1.11789222,114270.0,114260.0,0.39036]
[1754252221898,0.75709222,114270.0,114260.0,0.5654016]
[1754252222302,1.11789222,114270.0,114260.0,0.5654016]
[1754252222606,1.11789222,114270.0,114260.0,0.39036]
[1754252222904,0.5771809,114270.0,114260.0,0.39036]
[1754252223106,1.11789222,114270.0,114260.0,0.12388]
[1754252223302,0.5771809,114270.0,114260.0,0.39052]
[1754252223504,1.11789222,114270.0,114260.0,0.39052]
[1754252223900,1.11789222,114270.0,114260.0,0.12388]
[1754252224107,1.11789222,114270.0,114260.0,0.39088]
[1754252224307,1.11789222,114270.0,114260.0,0.2989216]
[1754252224606,1.11789222,114270.0,114260.0,0.5659216]
[1754252224906,1.11789222,114270.0,114260.0,0.2989216]
[1754252225107,1.11789222,114270.0,114260.0,0.5659216]
[1754252226004,1.11789222,114270.0,114260.0,0.2989216]
[1754252226205,1.11789222,114270.0,114260.0,0.5659216]
[1754252226809,1.11789222,114270.0,114260.0,0.39088]
[1754252227314,1.11789222,114270.0,114260.0,0.5659216]
[1754252231214,1.11789222,114270.0,114260.0,0.2989216]
[1754252231411,1.11789222,114270.0,114260.0,0.5657216]
[1754252231809,1.11789222,114270.0,114260.0,0.2989216]
[1754252232009,1.11789222,114270.0,114260.0,0.5657216]
[1754252232209,1.11789222,114270.0,114260.0,0.2989216]
[1754252232415,1.11789222,114270.0,114260.0,0.5656816]
[1754252233711,0.5771809,114270.0,114260.0,0.5656816]
[1754252233913,1.11789222,114270.0,114260.0,0.5656816]
[1754252235817,0.75709222,114270.0,114260.0,0.5656816]
[1754252236018,1.11789222,114270.0,114260.0,0.5656816]
[1754252236617,1.79397936,114270.0,114260.0,0.39064]
[1754252239823,1.79397936,114270.0,114260.0,0.5656814]
[1754252240524,1.79397936,114270.0,114260.0,0.39064]
[1754252243520,1.79397936,114270.0,114260.0,0.5656817]
[1754252244417,0.5771809,114270.0,114260.0,0.5656817]
[1754252244626,1.79397936,114270.0,114260.0,0.5656817]
[1754252248727,1.79397936,114270.0,114260.0,0.5655617]
[1754252256140,1.79397936,114270.0,114260.0,0.39052]
[1754252262334,1.79397936,114270.0,114260.0,0.5655617]
[1754252262539,1.43317936,114270.0,114260.0,0.5655617]
[1754252262748,1.79397936,114270.0,114260.0,0.5655617]
[1754252263038,1.79397936,114270.0,114260.0,0.12388]
[1754252263245,1.79397936,114270.0,114260.0,0.39016]
[1754252266244,1.79397936,114270.0,114260.0,0.5652015]
[1754252266644,1.79397936,114270.0,114260.0,0.39016]
[1754252267843,1.79397936,114270.0,114260.0,0.5652015]
[1754252268045,1.79397936,114270.0,114260.0,0.39016]
[1754252269443,1.79397936,114270.0,114260.0,0.5652015]
[1754252269745,1.79397936,114270.0,114260.0,0.39016]
[1754252272842,0.1750416,114260.0,114250.0,0.01604]
[1754252273041,0.2139369,114250.0,114240.0,1.7706299]
[1754252273248,0.82233613,114250.0,114240.0,2.0367899]
[1754252273441,0.82233613,114250.0,114240.0,1.7695899]
[1754252274047,0.82233613,114250.0,114240.0,1.7705899]
[1754252285553,0.82233613,114250.0,114240.0,1.7268221]
[1754252287559,0.2139369,114250.0,114240.0,1.7268221]
[1754252287759,0.79916613,114250.0,114240.0,1.7268221]
[1754252288559,0.79916613,114250.0,114240.0,2.33522133]
[1754252290757,0.79916613,114250.0,114240.0,1.7268221]
[1754252291861,0.1907669,114250.0,114240.0,1.7268221]
[1754252292060,1.15996613,114250.0,114240.0,1.7268221]
[1754252293763,0.79916613,114250.0,114240.0,1.7268221]
[1754252295161,1.15996613,114250.0,114240.0,1.7268221]
[1754252295559,1.15996613,114250.0,114240.0,0.5163821]
[1754252295761,1.15996613,114250.0,114240.0,0.5636121]
[1754252298663,1.18316613,114250.0,114240.0,0.5636121]
[1754252302572,0.82236613,114250.0,114240.0,0.5636121]
[1754252303661,1.18316613,114250.0,114240.0,0.5636121]
[1754252307479,0.5747669,114250.0,114240.0,0.5636121]
[1754252307778,1.18316613,114250.0,114240.0,0.5636121]
[1754252312679,1.18316613,114250.0,114240.0,1.17201133]
[1754252313679,1.18316613,114250.0,114240.0,0.5636121]
[1754252313875,0.82236613,114250.0,114240.0,0.5636121]
[1754252318981,0.82236613,114250.0,114240.0,1.17201133]
[1754252321785,0.82236613,114250.0,114240.0,0.5636121]
[1754252322882,0.2139669,114250.0,114240.0,0.5636121]
[1754252323186,0.82236613,114250.0,114240.0,1.17201133]
[1754252323382,0.79916613,114250.0,114240.0,1.17201133]
[1754252325691,0.78345613,114250.0,114240.0,1.17201133]
[1754252326488,0.79939613,114250.0,114240.0,1.17201133]
[1754252333387,0.1750569,114250.0,114240.0,1.17201133]
[1754252333593,0.93068513,114260.0,114250.0,0.2970573]
[1754252333887,0.88692143,114260.0,114250.0,0.90545653]
[1754252334092,0.88692143,114260.0,114250.0,0.2970573]
[1754252334684,0.87098143,114260.0,114250.0,0.2970573]
[1754252334889,0.82721783,114260.0,114250.0,0.90545653]
[1754252335192,0.82921783,114260.0,114250.0,0.90545653]
[1754252336190,0.82921783,114260.0,114250.0,1.26625653]
[1754252336392,0.84515783,114260.0,114250.0,1.26625653]
[1754252346391,0.2367586,114260.0,114250.0,1.26625653]
[1754252346693,0.84515783,114260.0,114250.0,1.26625653]
[1754252348899,1.22915783,114260.0,114250.0,0.2970572]
[1754252349599,1.22915783,114260.0,114250.0,0.5628572]
[1754252350793,0.86835783,114260.0,114250.0,0.5628572]
[1754252351699,1.22915783,114260.0,114250.0,0.5628572]
[1754252352201,1.22915783,114260.0,114250.0,0.3878]
[1754252352397,1.22915783,114260.0,114250.0,0.31433]
[1754252352601,1.22915783,114260.0,114250.0,0.2658]
[1754252352904,1.22915783,114260.0,114250.0,0.29101]
[1754252353498,1.22915783,114260.0,114250.0,0.31536]
[1754252354204,1.22915783,114260.0,114250.0,0.02521]
[1754252354404,1.22915783,114260.0,114250.0,0.29101]
[1754252354906,1.22915783,114260.0,114250.0,0.31536]
[1754252357604,1.05410193,114260.0,114240.0,0.03984]
[1754252357808,0.2148326,114240.0,114230.0,1.5699659]
[1754252358010,1.79243106,114240.0,114230.0,1.55067]
[1754252358809,1.79143106,114240.0,114230.0,1.55067]
[1754252359203,1.79143106,114240.0,114230.0,1.55267]
[1754252359503,1.79143106,114240.0,114230.0,1.7277579]
[1754252359809,1.79143106,114240.0,114230.0,1.7267579]
[1754252361211,1.79143106,114240.0,114230.0,0.12322]
[1754252361410,1.79143106,114240.0,114230.0,0.38902]
[1754252364511,1.43063106,114240.0,114230.0,0.5641078]
[1754252365115,0.82223183,114240.0,114230.0,0.5641078]
[1754252367016,1.18303183,114240.0,114230.0,0.5641078]
[1754252371624,0.82223183,114240.0,114230.0,0.5641078]
[1754252371824,1.18303183,114240.0,114230.0,0.5641078]
[1754252373722,1.79143106,114240.0,114230.0,0.5641078]
[1754252375925,1.79143106,114240.0,114230.0,0.38902]
[1754252382730,1.79143106,114240.0,114230.0,0.564108]
[1754252384931,1.79143106,114240.0,114230.0,0.524108]
[1754252385324,1.79143106,114240.0,114230.0,0.34902]
[1754252386831,1.79143106,114240.0,114230.0,0.36409]
[1754252387131,1.79143106,114240.0,114230.0,0.38766]
[1754252403442,0.5746326,114240.0,114230.0,0.562748]
[1754252403843,1.18303183,114240.0,114230.0,0.562748]
[1754252405746,1.18303183,114240.0,114230.0,0.38766]
[1754252405942,1.79143106,114240.0,114230.0,0.38766]
[1754252406341,1.18303183,114240.0,114230.0,1.17114723]
[1754252406851,1.18303183,114240.0,114230.0,0.562748]
[1754252407759,1.18303183,114240.0,114230.0,0.38766]
[1754252408760,1.79143106,114240.0,114230.0,0.38766]
[1754252416868,1.79143106,114240.0,114230.0,0.5627479]
[1754252417970,1.18303183,114240.0,114230.0,0.5627479]
[1754252423374,1.79143106,114240.0,114230.0,0.5627479]
[1754252426674,1.79143106,114240.0,114230.0,0.38766]
[1754252427874,1.79143106,114240.0,114230.0,0.5627478]
[1754252435681,1.79143106,114240.0,114230.0,0.38766]
[1754252436380,1.43063106,114240.0,114230.0,0.38766]
[1754252436577,1.79143106,114240.0,114230.0,0.38766]
[1754252437278,1.79143106,114240.0,114230.0,0.562748]
[1754252438484,1.79143106,114240.0,114230.0,0.296948]
[1754252438682,1.79143106,114240.0,114230.0,0.562628]
[1754252439786,1.43063106,114240.0,114230.0,0.562628]
[1754252439988,1.79143106,114240.0,114230.0,0.562628]
[1754252444089,1.18303183,114240.0,114230.0,0.562628]
[1754252445389,1.18303183,114240.0,114230.0,0.296948]
[1754252445892,1.18303183,114240.0,114230.0,0.562588]
[1754252446092,1.18303183,114240.0,114230.0,0.12186]
[1754252446295,1.79143106,114240.0,114230.0,0.3875]
[1754252446792,1.79143106,114240.0,114230.0,0.12186]
[1754252447596,1.79143106,114240.0,114230.0,0.3875]
[1754252448409,0.5746326,114240.0,114230.0,0.562588]
[1754252448705,1.79143106,114240.0,114230.0,0.562588]
[1754252449103,1.79143106,114240.0,114230.0,0.09829]
[1754252449303,1.79143106,114240.0,114230.0,0.34757]
[1754252450307,1.79143106,114240.0,114230.0,0.38564]
[1754252450695,1.79143106,114240.0,114230.0,0.5607278]
[1754252458708,0.5746326,114240.0,114230.0,0.5607278]
[1754252458909,0.82223183,114240.0,114230.0,1.16912703]
[1754252459107,0.5796132,114260.0,114250.0,0.1750572]
[1754252459301,0.5073978,114270.0,114260.0,0.2222219]
[1754252459499,1.31491363,114270.0,114260.0,0.2920919]
[1754252459709,1.31491363,114270.0,114260.0,0.11705]
[1754252459906,1.92331286,114270.0,114260.0,0.09432]
[1754252460108,1.92331286,114270.0,114260.0,0.11705]
[1754252460307,1.92331286,114270.0,114260.0,0.38265]
[1754252461010,0.7065144,114270.0,114260.0,0.557692]
[1754252461221,1.31491363,114270.0,114260.0,0.557692]
[1754252461601,1.31991363,114270.0,114260.0,0.557692]
[1754252462212,1.31991363,114270.0,114260.0,0.38265]
[1754252462413,1.32291363,114270.0,114260.0,0.38265]
[1754252463212,1.31791363,114270.0,114260.0,0.38265]
[1754252463908,1.92631286,114270.0,114260.0,0.38265]
[1754252466608,0.175042,114260.0,114250.0,0.03272]
[1754252466808,0.2144674,114250.0,114240.0,0.6014352]
[1754252467010,1.18366663,114250.0,114240.0,0.6014352]
[1754252467210,1.18366663,114250.0,114240.0,0.2921227]
[1754252467415,1.18366663,114250.0,114240.0,0.11705]
[1754252467604,1.18366663,114250.0,114240.0,0.2921227]
[1754252468610,1.11620731,114250.0,114240.0,0.2921227]
[1754252468811,1.11620731,114250.0,114240.0,0.2931227]
[1754252469319,1.11620731,114250.0,114240.0,0.2921227]
[1754252469722,0.5752674,114250.0,114240.0,0.2921227]
[1754252470519,1.11620731,114250.0,114240.0,0.2921227]
[1754252471517,1.11620731,114250.0,114240.0,0.11705]
[1754252471719,1.11620731,114250.0,114240.0,0.2921226]
[1754252471921,1.11620731,114250.0,114240.0,0.11705]
[1754252473222,0.5752674,114250.0,114240.0,0.11705]
[1754252473414,1.11620731,114250.0,114240.0,0.11705]
[1754252474618,0.5752674,114250.0,114240.0,0.2921226]
[1754252474916,1.11620731,114250.0,114240.0,0.2921226]
[1754252478628,0.75540731,114250.0,114240.0,0.2921226]
[1754252478826,1.11620731,114250.0,114240.0,0.2921226]
[1754252483727,1.11620731,114250.0,114240.0,0.11705]
[1754252486928,1.11620731,114250.0,114240.0,0.09432]
[1754252487135,1.11620731,114250.0,114240.0,0.00957]
[1754252487640,1.11620731,114250.0,114240.0,0.02308]
[1754252487841,1.11620731,114250.0,114240.0,0.05804]
[1754252490632,1.18384445,114250.0,114240.0,0.05804]
[1754252492637,0.82304445,114250.0,114240.0,0.05804]
[1754252492936,1.18384445,114250.0,114240.0,0.05804]
[1754252512343,0.82304445,114250.0,114240.0,0.05804]
[1754252512641,1.18384445,114250.0,114240.0,0.05804]
[1754252513455,1.18384445,114250.0,114240.0,0.2331127]
[1754252515053,1.18384445,114250.0,114240.0,0.2553927]
[1754252520053,0.82304445,114250.0,114240.0,0.2553927]
[1754252520256,1.18384445,114250.0,114240.0,0.2553927]
[1754252521155,0.5752674,114250.0,114240.0,0.90461975]
[1754252521352,0.82304445,114250.0,114240.0,0.90461975]
[1754252521662,0.2144674,114250.0,114240.0,0.90461975]
[1754252521952,0.03941,114250.0,114240.0,1.8739968]
[1754252522157,0.2144673,114250.0,114240.0,1.8739968]
[1754252522350,0.2144673,114250.0,114240.0,1.26541975]
[1754252522750,0.2144673,114250.0,114240.0,1.8739968]
[1754252522950,0.2144673,114250.0,114240.0,1.26541975]
[1754252524757,0.2144673,114250.0,114240.0,1.53261975]
[1754252525856,0.2144673,114250.0,114240.0,0.9240427]
[1754252526159,0.82304435,114250.0,114240.0,1.53261975]
[1754252527259,0.2144673,114250.0,114240.0,1.53261975]
[1754252527748,0.82304435,114250.0,114240.0,1.53261975]
[1754252529563,0.82304435,114250.0,114240.0,0.9240427]
[1754252529855,0.82304435,114250.0,114240.0,1.53261975]
[1754252530058,0.82304435,114250.0,114240.0,1.17181975]
[1754252530555,0.82304435,114250.0,114240.0,1.53261975]
[1754252530955,0.82304435,114250.0,114240.0,1.17181975]
[1754252531159,0.82304435,114250.0,114240.0,1.53261975]
[1754252531655,0.82304435,114250.0,114240.0,1.17181975]
[1754252532064,1.18384435,114250.0,114240.0,1.43725975]
[1754252532452,1.18384435,114250.0,114240.0,0.8286827]
[1754252533561,1.18384435,114250.0,114240.0,1.43725975]
[1754252538364,1.18384435,114250.0,114240.0,0.8286827]
[1754252541261,1.18384435,114250.0,114240.0,1.43725975]
[1754252542273,1.18384435,114250.0,114240.0,0.8286827]
[1754252542665,1.18384435,114250.0,114240.0,0.5614827]
[1754252544270,1.18384435,114250.0,114240.0,1.17005975]
[1754252546175,0.5752673,114250.0,114240.0,1.17005975]
[1754252546371,1.18384435,114250.0,114240.0,1.17005975]
[1754252547873,1.18384435,114250.0,114240.0,0.5614827]
[1754252548175,1.18384435,114250.0,114240.0,1.17005975]
[1754252548577,1.18384435,114250.0,114240.0,1.43725975]
[1754252550775,1.18384435,114250.0,114240.0,0.8286827]
[1754252550975,1.18384435,114250.0,114240.0,1.43725975]
[1754252551376,1.18384435,114250.0,114240.0,0.8286827]
[1754252551877,1.18384435,114250.0,114240.0,1.43725975]
[1754252552777,0.5752673,114250.0,114240.0,1.43725975]
[1754252552976,1.18384435,114250.0,114240.0,1.43725975]
[1754252555678,0.82304435,114250.0,114240.0,1.43725975]
[1754252555876,1.18384435,114250.0,114240.0,1.43725975]
[1754252558179,1.18384435,114250.0,114240.0,0.8009926]
[1754252558380,1.18384435,114250.0,114240.0,0.62592]
[1754252558585,1.18384435,114250.0,114240.0,0.31256]
[1754252558881,1.54464435,114250.0,114240.0,0.31256]
[1754252559181,2.1532214,114250.0,114240.0,0.5326]
[1754252559387,1.54464435,114250.0,114240.0,0.5326]
[1754252560080,1.54664435,114250.0,114240.0,0.5326]
[1754252560284,2.1552214,114250.0,114240.0,0.2654]
[1754252560484,2.1532214,114250.0,114240.0,0.2654]
[1754252560686,2.1582214,114250.0,114240.0,0.2654]
[1754252561391,1.54964435,114250.0,114240.0,0.2654]
[1754252561691,1.55064435,114250.0,114240.0,0.2654]
[1754252562488,1.55064435,114250.0,114240.0,0.27961]
[1754252562489,1.55264435,114250.0,114240.0,0.27961]
[1754252564090,1.55264435,114250.0,114240.0,0.28884]
[1754252564583,0.9440673,114250.0,114240.0,0.32105]
[1754252564790,1.55264435,114250.0,114240.0,0.5565326]
[1754252565288,0.9440673,114250.0,114240.0,1.16510965]
[1754252565494,1.19184435,114250.0,114240.0,1.16510965]
[1754252565790,0.1830573,114250.0,114240.0,2.1344867]
[1754252565983,0.1830573,114250.0,114240.0,1.52590965]
[1754252567086,0.1780573,114250.0,114240.0,1.52590965]
[1754252567393,0.1800573,114250.0,114240.0,1.52590965]
[1754252568094,0.1780573,114250.0,114240.0,1.52590965]
[1754252568296,0.2160773,114250.0,114240.0,1.16510965]
[1754252568494,0.82465435,114250.0,114240.0,1.16510965]
[1754252568690,0.82465435,114250.0,114240.0,0.5565326]
[1754252568691,0.2150773,114250.0,114240.0,0.5565326]
[1754252568994,0.2160773,114250.0,114240.0,0.5565326]
[1754252572100,0.2160773,114250.0,114240.0,0.8237326]
[1754252575304,0.1780573,114250.0,114240.0,0.8237326]
[1754252577899,0.1780573,114250.0,114240.0,1.3645526]
[1754252578404,0.1780573,114250.0,114240.0,0.8237326]
[1754252578994,0.1933573,114250.0,114240.0,0.8237326]
[1754252579194,0.2160773,114250.0,114240.0,0.8237326]
[1754252582008,0.5768773,114250.0,114240.0,0.8237326]
[1754252582701,0.2160773,114250.0,114240.0,0.8237326]
[1754252590710,0.82453881,114250.0,114240.0,1.43219411]
[1754252591815,0.82353881,114250.0,114240.0,1.43219411]
[1754252593327,0.2150773,114250.0,114240.0,1.43219411]
[1754252593618,0.82353881,114250.0,114240.0,1.43219411]
[1754252593916,0.80181881,114250.0,114240.0,1.43219411]
[1754252594517,0.1933573,114250.0,114240.0,1.43219411]
[1754252594714,0.80181881,114250.0,114240.0,1.43219411]
[1754252601219,0.82607881,114250.0,114240.0,1.43219411]
[1754252601809,0.82607881,114250.0,114240.0,1.16499411]
[1754252608626,0.82607881,114250.0,114240.0,0.5565326]
[1754252608827,0.82607881,114250.0,114240.0,1.16499411]
[1754252610728,0.2176173,114250.0,114240.0,1.16499411]
[1754252610929,0.82607881,114250.0,114240.0,1.16499411]
[1754252612632,0.82607881,114250.0,114240.0,0.89959461]
[1754252612927,0.82607881,114250.0,114240.0,0.98984151]
[1754252613331,0.82607881,114250.0,114240.0,0.38138]
[1754252613828,0.82607881,114250.0,114240.0,0.5564531]
[1754252614029,1.18687881,114250.0,114240.0,0.38138]
[1754252614426,1.18687881,114250.0,114240.0,0.5564531]
[1754252615134,1.18687881,114250.0,114240.0,0.38138]
[1754252615631,1.18687881,114250.0,114240.0,0.5564525]
[1754252617333,1.18687881,114250.0,114240.0,1.16491401]
[1754252618533,1.18687881,114250.0,114240.0,0.98984151]
[1754252619028,1.18687881,114250.0,114240.0,0.38138]
[1754252619634,1.18687881,114250.0,114240.0,0.5564526]
[1754252619933,1.18687881,114250.0,114240.0,0.38138]
[1754252620935,1.18687881,114250.0,114240.0,0.5564528]
[1754252623136,1.18687881,114250.0,114240.0,0.38138]
[1754252623834,1.18687881,114250.0,114240.0,0.5564527]
[1754252625937,0.5784173,114250.0,114240.0,0.5564527]
[1754252626140,1.18687881,114250.0,114240.0,0.5564527]
[1754252626438,1.18687881,114250.0,114240.0,1.16491421]
[1754252628037,0.2176173,114250.0,114240.0,0.5564527]
[1754252628340,0.82607881,114250.0,114240.0,0.5564527]
[1754252628541,0.82607881,114250.0,114240.0,1.16491421]
[1754252628741,1.18687881,114250.0,114240.0,1.16491421]
[1754252629033,0.82607881,114250.0,114240.0,1.16491421]
[1754252629239,1.18687881,114250.0,114240.0,1.16491421]
[1754252632439,0.82607881,114250.0,114240.0,1.16491421]
[1754252634447,1.18687881,114250.0,114240.0,1.16491421]
[1754252640847,1.18687881,114250.0,114240.0,0.5564527]
[1754252641046,1.18687881,114250.0,114240.0,1.16491421]
[1754252642051,1.18687881,114250.0,114240.0,0.38138]
[1754252642242,1.18687881,114250.0,114240.0,0.98980151]
[1754252643359,1.18687881,114250.0,114240.0,0.5564127]
[1754252643754,0.82607881,114250.0,114240.0,0.5564127]
[1754252643955,0.82607881,114250.0,114240.0,1.16487421]
[1754252645360,1.18687881,114250.0,114240.0,1.16487421]
[1754252645548,1.18687881,114250.0,114240.0,0.98980151]
[1754252645856,1.18687881,114250.0,114240.0,1.16487421]
[1754252646256,1.18687881,114250.0,114240.0,0.98980151]
[1754252646457,1.18687881,114250.0,114240.0,1.16487421]
[1754252646956,1.18687881,114250.0,114240.0,0.98980151]